Cogmind - Beta 13 @@@ ROGUE MODE // 2024.04.01 @ 14:57:13 Player: SLUGGY Result: Destroyed by D-53 Grenadier with Mini Grenade Launcher Performance ------------- Evolutions (0) 0 Regions Visited (2) 400 Robots Destroyed (20) 100 Value Destroyed (303) 303 Prototype IDs (2) 40 Alien Tech Used (0) 0 Bonus (-45) -45 TOTAL SCORE: 798 Bonus ------- Friendly Fire -45 Cogmind --------- Core Integrity 0/250 Matter 136/300 Energy 99/100 System Corruption 0% Temperature Cool (0) Movement Core (50) Location -10/Mines Parts ------- > --- POWER (1) -------- (None) > --- PROPULSION (2) --- (None) > --- UTILITY (2) ------ Signal Interpreter Hacking Suite > --- WEAPON (2) ------- Light Assault Rifle > --- INVENTORY (5) ---- Light Ion Engine Weight Redist. System Heavy Assault Rifle Peak State ------------ > --- POWER ------------ Light Ion Engine > --- PROPULSION ------- Improved Hover Unit Improved Hover Unit > --- UTILITY ---------- Signal Interpreter Hacking Suite > --- WEAPON ----------- Light Assault Rifle Heavy Assault Rifle > --- INVENTORY -------- Light Ion Engine Weight Redist. System Light Cannon [Rating: 12] Favorites ----------- Power Light Ion Engine Engine Light Ion Engine Propulsion Wheel Wheel Wheel Hover Unit Improved Hover Unit Flight Unit Flight Unit Utility Seismic Detector Device Seismic Detector Storage Small Storage Unit Processor Targeting Computer Hackware Hacking Suite Weapon Light Cannon Energy Gun EM Pulse Gun Ballistic Gun Light Assault Rifle Ballistic Cannon Light Cannon Launcher Grenade Launcher Build | -11 -10 -10 ------- Run | Yrd Mat Min Slots Evolved . | . . . Power . | . . . Propulsion . | . . . Utility . | . . . Weapon . | . . . Parts Attached 25 | 7 14 4 Power 2 | 1 1 . Engine 2 | 1 1 . Core . | . . . Reactor . | . . . Propulsion 7 | 2 4 1 Treads . | . . . Leg . | . . . Wheel 2 | 2 . . Hover 3 | . 2 1 Flight 2 | . 2 . Utility 5 | 2 3 . Device 1 | 1 . . Storage 1 | 1 . . Processor 2 | . 2 . Hackware 1 | . 1 . Protection . | . . . Artifact . | . . . Weapon 11 | 2 6 3 Energy Gun 2 | . 2 . Energy Cannon . | . . . Ballistic Gun 5 | 2 2 1 Ballistic Cannon 3 | . 2 1 Launcher 1 | . . 1 Special Weapon . | . . . Impact Weapon . | . . . Slashing Weapon . | . . . Piercing Weapon . | . . . Special Melee Weapon . | . . . Unidentified Prototypes . | . . . Parts Lost 6 | . . 6 Power 1 | . . 1 Propulsion 3 | . . 3 Utility . | . . . Weapon 2 | . . 2 Highest Loss Streak 4 | . . 4 To Critical Strikes . | . . . Average Slot Usage (%) 98 | . 99 96 Engine 14 | . 14 14 Wheel 10 | . 12 . Hover 6 | . 2 24 Flight 9 | . 11 . Device 7 | . 8 . Storage 5 | . 6 . Processor 8 | . 7 14 Hackware 6 | . 5 14 Energy Gun 5 | . 6 . Ballistic Gun 9 | . 7 19 Ballistic Cannon 12 | . 13 7 Naked Turns . | . . . Heaviest Build 14 | 11 14 7 Greatest Support 20 | 20 20 14 Greatest Overweight (x) 2 | . 2 2 Average Overweight (x) . | . . . Largest Inventory Capacity 8 | 8 8 5 Average Capacity 6 | 7 6 5 Most Carried 8 | 5 8 5 Average Carried 5 | 2 5 3 Final Capacity 8 | 8 5 5 Final Carried 5 | 5 5 3 Class Distribution -------------------- 65% | Mutant 34% | Scavenger-Mutant Dominant Class ---------------- Mutant | -10/Materials Mutant | -10/Mines Resources | -11 -10 -10 ----------- Run | Yrd Mat Min Matter Collected 490 | 126 364 . Remotely . | . . . Salvage Created 470 | 96 340 34 Parts 50 | 13 37 . Haulers Intercepted 1 | . 1 . Recyclers Shooed . | . . . Parts Field Recycled . | . . . Retrieved Matter . | . . . Parts Self-Destructed . | . . . Prevented . | . . . Kills | -11 -10 -10 ------- Run | Yrd Mat Min Combat Hostiles Destroyed 15 | . 10 5 Guns 2 | . 2 . Cannons 8 | . 8 . AOE 5 | . . 5 Classes Destroyed 9 | 2 6 1 Worker 1 | . 1 . Tunneler 3 | 3 . . Hauler 1 | . 1 . Recycler 1 | 1 . . Operator 2 | . 2 . Watcher 2 | . 2 . Swarmer 6 | . 6 . Grunt 4 | . 4 . Assembled 5 | . . 5 Best Kill Streak 9 | 3 9 5 Combat Bots Only 7 | . 7 5 Max Kills in Single Turn 2 | 1 2 2 Gunslinging . | . . . Exploded 2 | . . 2 Melee . | . . . Uniques/NPCs Destroyed . | . . . Combat | -11 -10 -10 -------- Run | Yrd Mat Min Hostile Shots Fired 62 | . 33 29 Missed 22 | . 14 8 Damage Taken 773 | . 169 604 Core 274 | . 56 218 Absorbed by Shields . | . . . Core Remaining (%) 100 | 100 . . Volleys Fired 54 | 10 36 8 Largest 2 | 2 2 2 Hottest 75 | 40 75 55 Shots Fired 108 | 20 72 16 Gun 66 | 20 36 10 Cannon 39 | . 36 3 Launcher 3 | . . 3 Special . | . . . Kinetic 83 | 20 50 13 Thermal . | . . . Explosive 3 | . . 3 Electromagnetic 22 | . 22 . Robot Hit Streak 6 | 3 6 1 Robot Miss Streak 5 | 1 5 3 Penetration Max . | . . . Secondary Targets . | . . . Shots Hit Robots 50 | 12 37 1 Core Hits 38 | 6 21 11 Critical Kills . | . . . Critical Parts Destroyed . | . . . Critical Strikes . | . . . Melee Attacks . | . . . Impact . | . . . Slashing . | . . . Piercing . | . . . Sneak Attacks . | . . . Combat Hostiles . | . . . Follow-up Attacks . | . . . Damage Inflicted 1055 | 104 566 385 Guns 366 | 104 246 16 Cannons 320 | . 320 . Explosions 369 | . . 369 Melee . | . . . Ramming . | . . . Kinetic 496 | 104 376 16 Thermal . | . . . Explosive 369 | . . 369 Electromagnetic 190 | . 190 . Impact . | . . . Slashing . | . . . Piercing . | . . . Highest Corruption . | . . . Average Corruption . | . . . Corruption Purged . | . . . Corruption Blocked . | . . . Overload Shots . | . . . Overflow Damage 44 | . 24 20 Projectiles 24 | . 24 . Explosions 20 | . . 20 Melee . | . . . Knockbacks 3 | . 3 . Impact . | . . . Kinetic 3 | . 3 . Secondary . | . . . Self-Inflicted Damage 57 | . . 57 Shots 2 | . . 2 Rammed . | . . . Targets Rammed . | . . . Kicked . | . . . Crushed . | . . . Highest Temperature 105 | . 105 18 Average Temperature 27 | . 30 9 Received Heat Transfer 36 | . 30 6 Siege Activations . | . . . Robots Corrupted . | . . . Combat Hostiles . | . . . Parts Fried . | . . . Impact Corruptions . | . . . Robots Melted . | . . . Combat Hostiles . | . . . Parts Melted . | . . . Heat Transferred . | . . . Parts Sabotaged . | . . . Parts Stolen . | . . . Parts Stripped . | . . . Power Chain Reactions . | . . . Alert | -11 -10 -10 ------- Run | Yrd Mat Min Peak Influence 304 | 20 304 108 Initial 52 | . 13 52 Average 124 | 9 156 68 Maximum Alert Level 1 | . 1 . Low Security (%) 74 | 100 64 100 Level 1 25 | . 35 . Level 2 . | . . . Level 3 . | . . . Level 4 . | . . . Level 5 . | . . . High Security . | . . . Max Security . | . . . Squads Dispatched 1 | . 1 . Investigation 1 | . 1 . Extermination . | . . . Reinforcement . | . . . Assault . | . . . Garrison . | . . . Intercept . | . . . Searches Triggered . | . . . Construction Impeded . | . . . Haulers Reinforced . | . . . Active Scanning Responses . | . . . Cargo Convoy Interrupts . | . . . Stealth | -11 -10 -10 --------- Run | Yrd Mat Min Distress Signals 1 | . 1 . Communications Jammed . | . . . Distress Signals . | . . . Times Spotted 37 | . 15 22 Peak Tracking Total 17 | . 3 17 Tactical Retreats 1 | . . 1 Traps | -11 -10 -10 ------- Run | Yrd Mat Min Traps Triggered . | . . . Indirectly . | . . . Trap Hack Attempts . | . . . Triggered . | . . . Disarmed . | . . . Reprogrammed . | . . . Reused . | . . . Traps Extracted . | . . . Installed . | . . . Triggered . | . . . Machines | -11 -10 -10 ---------- Run | Yrd Mat Min Machines Disabled . | . . . Max in Single Turn . | . . . Machines Repaired . | . . . Machines Dismantled . | . . . Machines Sabotaged . | . . . Overloaded Fab Kills . | . . . Hacking | -11 -10 -10 --------- Run | Yrd Mat Min Machines Accessed 4 | . 4 . Terminals 4 | . 4 . Fabricators . | . . . Repair Stations . | . . . Recycling Units . | . . . Scanalyzers . | . . . Garrison Access . | . . . Total Hacks 10 | . 10 . Successful 5 | . 5 . Failed 5 | . 5 . Catastrophic 1 | . 1 . Database Lockouts . | . . . Manual 4 | . 4 . Terminals 10 | . 10 . Fabricators . | . . . Repair Stations . | . . . Recycling Units . | . . . Scanalyzers . | . . . Garrison Access . | . . . Terminal Hacks 5 | . 5 . Prototype ID Bank 1 | . 1 . Maintenance Status 1 | . 1 . Registered Components 1 | . 1 . Registered Prototypes 1 | . 1 . Zone Layout 1 | . 1 . Fabricator Hacks . | . . . Repair Station Hacks . | . . . Recycling Unit Hacks . | . . . Scanalyzer . | . . . Garrison Access Hacks . | . . . Unauthorized Hacks . | . . . Terminals . | . . . Fabricators . | . . . Repair Stations . | . . . Recycling Units . | . . . Scanalyzers . | . . . Garrison Access . | . . . Data Cores Recovered 2 | . 2 . Used 2 | . 2 . Hacking Detections 4 | . 4 . Full Trace Events 2 | . 2 . Feedback Events . | . . . Feedback Blocked . | . . . Robot Schematics Acquired . | . . . Robots Built . | . . . Authchips . | . . . Time . | . . . Total Robot Build Rating . | . . . Part Schematics Acquired . | . . . Parts Built . | . . . Authchips . | . . . Time . | . . . Total Part Build Rating . | . . . Parts Repaired . | . . . Time . | . . . Parts Recycled . | . . . Recycled Matter . | . . . Retrieved Matter . | . . . Retrieved Components . | . . . Parts Scanalyzed . | . . . Part Schematics Acquired . | . . . Parts Damaged . | . . . Bothacking | -11 -10 -10 ------------ Run | Yrd Mat Min Used RIF Installer . | . . . Robots Hacked . | . . . Non-combat . | . . . Combat . | . . . Robot Hacks Applied . | . . . Relay Couplers Released . | . . . Fabnet Peak Effective % . | . . . Robots Rewired . | . . . Allies Hacked . | . . . Hacks Repelled . | . . . Allies | -11 -10 -10 -------- Run | Yrd Mat Min Total Allies . | . . . Largest Group . | . . . Highest-Rated Group . | . . . Highest-Rated Ally . | . . . Total Orders . | . . . Ally Attacks . | . . . Total Damage . | . . . Kills . | . . . Allies Corrupted . | . . . Allies Melted . | . . . Intel | -11 -10 -10 ------- Run | Yrd Mat Min Robot Analysis Total . | . . . Derelict Logs Recovered . | . . . Drone Launches . | . . . Drone Recoveries . | . . . Exploration | -11 -10 -10 ------------- Run | Yrd Mat Min Turns Passed 814 | 108 585 121 Spaces Moved 1085 | 87 837 161 Core 29 | 20 3 6 Treads . | . . . Legs . | . . . Wheels 295 | 67 228 . Hover 254 | . 99 155 Flight 507 | . 507 . Fastest Speed 37 | 50 37 50 Average Speed 54 | 73 51 58 Slowest Speed 150 | 80 150 150 Overloaded Moves . | . . . Propulsion Burnouts . | . . . Robots Hopped 4 | . 4 . Cave-ins Triggered . | . . . Exploration Rate (%) 44 | 4 94 36 Regions Visited 2 Branch Regions 1 Pre-discovered Areas . | . . . Known Exits Taken 1 | . 1 . Unknown Exits Taken 1 | 1 . . Scrap Searched . | . . . Spaces Dug . | . . . Terrain Destroyed 23 | . . 23 Melee . | . . . Projectile . | . . . AOE 23 | . . 23 Terrain Rammed . | . . . Walls Destroyed . | . . . Machines Disabled . | . . . Actions | -11 -10 -10 --------- Run | Yrd Mat Min Total 1210 | 115 922 173 Wait . | . . . Move 1075 | 86 828 161 Hop 4 | . 4 . Pick Up 28 | 12 16 . Fast Attach 6 | . 6 . Attach 11 | 7 2 2 Detach . | . . . Swap 8 | . 6 2 Drop 24 | . 24 . Fire 54 | 10 36 8 Melee . | . . . Ram . | . . . Kick . | . . . Crush . | . . . Escape Stasis . | . . . Rewire . | . . . Trap . | . . . Miscellaneous . | . . . Route ------- -11/Scrapyard -10/Materials (discovered 5 exits: [*Mat x3] / *Min x2) -10/Mines History --------- Turn | Location | Event 5 | -11/Scrapyard | Discovered new exit (range 15) 109 | -11/Scrapyard | Entered Materials 139 | -10/Materials | Discovered new exit (range 9) 269 | -10/Materials | Discovered new exit (range 15) 307 | -10/Materials | Build established: Mutant 308 | -10/Materials | Discovered new exit (range 16) 321 | -10/Materials | Destroyed 7 combat bots 479 | -10/Materials | Discovered new exit (range 8) 608 | -10/Materials | Discovered new exit (range 13) 694 | -10/Materials | Identified exit to Mines 694 | -10/Materials | Entered Mines 722 | -10/Mines | Assembled infested the area 727 | -10/Mines | Assisted by a Guerilla fighting off Assembled 809 | -10/Mines | Core integrity fell below 50% 813 | -10/Mines | Core integrity fell below 20% 815 | -10/Mines | Destroyed by D-53 Grenadier with Mini Grenade Launcher Last Messages --------------- 00738_ Imp. Hover Unit destroyed. 00738_ HV Slug penetrates Wall. 00740_ Grenade Launcher destroyed. 00742_ HV Slug penetrates Earth. 00743_ K0-568(h) destroyed. 00746_ C-30 ARC bursts open, deploying its payload. 00746_ D-53 Grenadier unfolds itself. 00748_ as-41558 destroyed. 00751_ as-99548 destroyed. 00751_ as-11472 destroyed. 00753_ as-79834 sneak attacks. 00772_ T-07 Excavator is excavating. [Achievement: Slippery One] 00806_ Imp. Hover Unit destroyed. 00808_ The unstable cave ceiling collapses. 00809_ Imp. Hover Unit destroyed. 00813_ The unstable cave ceiling collapses. 00813_ Lgt. Ion Engine destroyed. 00814_ Lgt. Cannon destroyed. 00815_ The unstable cave ceiling collapses. Map ----- +----------------------------------------------------+ | ?????????# #?????????????????????????????????? | | ?????????# #?????????????????????????????????? | | ????????## * #?????????????????????????????????? | | ????????# %! #?????????????????????????????????? | | ??????##?# ##?????????????????????????????????? | | ?????## # ??????????????????????????????????? | | ## #######????????????????????#####?? | | ## ##??###########?????## ##? | | # #### #?????# ## | | ## % # #??????# # | | ?##### % ##### #???????# # | | ?????## % "### ##???# #???????# ## | | ??????# "%??## #????# #???##### #? | | ??????#" ???#### # #??### ##??# #? | | ??????##"# ??????## #?# #?## ##?# ## #? | | ???????# ## ???????# #?# ### ### ## ##? | | ???????#??#"???????# ##?# ## ## ## #?? | | ??????????"#???????####??# ## #? | | ?????????????????????????# # ##### #? | | ?????????????????????????# ## ## #??# #? | | ?????????????????????????# ####### #?## ##? | | ?????????????????????????# #?????# """ #?####?? | | ??????????????????????#### #?????# """ #??????? | | ?????????????????????## # ###??? """ ??????? | | ????????????????????## #??# ?????? | | ????????????????????# @ ##?## ## ????? | | ????????????????????# #??# #??# ???? | | ??????????????????### #??# #??? #??? | | ?????????????????## # ##??# ????# #??? | | ?????????????????# # # ?????? ????? | | ?????????????????## #? """ "?????? ????? | | ???????????????### d ##??""" ?????????????? | | ??????????????## d #????""??????????????? | | ??????????????# ###????????????????????? | | ??????????????# #??????????????????????? | | ??????????????## #??????????????????????? | | ???????????????## # ##??????????????????????? | | ????????????????## ##???????????????????????? | | ?????????????????## ##???????????????????????? | | ??????????????????## #???????????????????????? | | ???????????????????### #???????????????????????? | | ????????????????????## ##??????????????????????? | | ????????????????????# #???####???????????????? | | ????????????????????# #??## ##??????????????? | | ????????????????????# #### #??????????????? | | ????????????????????## ## #??????????????? | | ?????????????????????## #### #?????????? | | ??????????????????????## #??????????? | | ???????????????????????###### #??????????? | | ????????????????????????????## ######??????????? | +----------------------------------------------------+ Best States ------------- Heat Dissipation 25 Energy Generation 10 Energy Capacity 125 Matter Stores 277 Matter Capacity 300 Sight Range 16 Terrain Scan Density 10 Evasion (%) 62 Targeting Accuracy 5 Offensive Hacking 10 Item Schematics ----------------- None Robot Schematics ------------------ None Fabricated ------------ Nothing Alien Tech Used ----------------- None Achievements -------------- Slippery One Challenges ------------ None Game ------ Seed LightNeutrinoDiverter Manual? 0 Play Time 00:15:45 Cumulative 9.3 hours Start 2024.04.01 @ 14:41:30 End 2024.04.01 @ 14:57:13 Sessions 1 Manual Loads 0 Difficulty Rogue Special Mode None Game No. 19 Rogue 19 Adventurer 0 Explorer 0 Win Type - Total 0 Types 0/0/0/0/0/0/0/0/0 Lore% 6 Gallery% 14 Achievement% 14 Wizard Run 0 Options --------- Layout 0 ASCII 0 Keyboard 0 Movement Mouse Keybinds 0 Fullscreen 1 Font 24/Smallcaps Map View 76x50 Zoom Use 0% Tactical HUD 1 Map Filters NONE Filters NONE Steam 1 RUN: 6c0f0ba5-f877-4836-991d-dcbecdf91cf0